bitfinex-derivatives/quotes_ETHF0:USTF0_20240818
["timestamp","ask_amount","ask_price","bid_price","bid_amount"]
[1724023712724,0.97918183,2627.3,2627.2,1.90289]
[1724023712924,0.00570537,2627.4,2627.3,1.90282]
[1724023714931,0.00570537,2627.4,2627.2,1.90752421]
[1724023715519,1.90282,2627.3,2627.2,0.00467421]
[1724023715724,2.47982,2627.3,2627.2,0.00467421]
[1724023716223,0.577,2627.3,2627.2,0.00467421]
[1724023716823,0.577,2627.3,2627.2,1.90756421]
[1724023718353,0.577,2627.3,2627.2,0.00467421]
[1724023718523,0.577,2627.3,2627.2,1.90756421]
[1724023718725,0.577,2627.3,2627.2,0.00467421]
[1724023719227,2.47982,2627.3,2627.2,0.00467421]
[1724023719625,0.577,2627.3,2627.2,1.90756421]
[1724023720922,2.47982,2627.3,2627.2,0.00467421]
[1724023721128,0.577,2627.3,2627.2,1.90756421]
[1724023722350,0.00570537,2627.4,2627.3,1.90282]
[1724023722928,1.9883869,2627.7,2627.3,1.90282]
[1724023722929,0.97918183,2627.7,2627.4,3.8064]
[1724023723232,1.90212,2628.3,2627.4,3.8064]
[1724023723233,0.97918183,2628.2,2628.0,1.9023]
[1724023723527,0.5561,2628.3,2628.0,1.9023]
[1724023723721,0.5561,2628.3,2627.6,3.2078]
[1724023723722,2.45822,2628.3,2627.9,1.90233]
[1724023723922,1.90226,2628.1,2627.8,1.90239]
[1724023724234,1.90242,2627.9,2627.6,5.11037]
[1724023724534,0.5719,2627.8,2627.6,5.11037]
[1724023724729,0.5719,2627.8,2627.7,1.90253]
[1724023725631,4.19173608,2628.3,2627.6,3.2078]
[1724023725936,1.90225,2628.1,2627.8,1.90243]
[1724023726321,2.47411,2628.2,2627.8,1.90243]
[1724023726533,2.47411,2628.2,2627.6,3.2078]
[1724023726740,1.90225,2628.1,2627.8,1.90243]
[1724023727336,0.5719,2628.2,2627.9,1.90235]
[1724023727337,2.4741,2628.2,2627.9,1.90235]
[1724023727531,2.4741,2628.2,2627.8,1.90241]
[1724023728330,0.5719,2628.2,2627.9,1.90231]
[1724023728528,2.47407,2628.2,2627.9,1.90231]
[1724023728736,0.5719,2628.2,2627.6,3.2078]
[1724023728937,0.5719,2628.2,2628.0,1.90226]
[1724023729128,0.5719,2628.2,2627.6,5.1104]
[1724023729437,0.5719,2628.2,2628.1,1.90224]
[1724023731140,0.00475425,2628.3,2628.2,1.90216]
[1724023732025,0.00475425,2628.3,2628.1,1.90219]
[1724023732231,0.00475425,2628.3,2628.2,1.90217]
[1724023734337,0.00475425,2628.3,2628.2,5.70697]
[1724023735044,0.00475425,2628.3,2628.2,7.60914]
[1724023735332,0.00475425,2628.3,2628.2,8.91477]
[1724023735538,0.00475425,2628.3,2628.2,15.81694]
[1724023735729,0.00475425,2628.3,2628.2,10.81694]
[1724023735929,0.00475425,2628.3,2628.2,8.91477]
[1724023736131,0.00475425,2628.3,2628.2,5.10997]
[1724023737942,1.90688425,2628.3,2627.9,5.5108]
[1724023738234,0.583,2628.2,2628.1,1.90219]
[1724023738737,0.583,2628.2,2628.0,1.90226]
[1724023738950,1.1421,2628.2,2628.0,1.90226]
[1724023739122,1.1421,2628.2,2628.1,1.90224]
[1724023740338,0.00475425,2628.3,2628.2,1.90216]
[1724023740641,0.00475425,2628.3,2628.2,2.44336]
[1724023742237,0.00475425,2628.3,2628.2,6.24816]
[1724023742441,0.00475425,2628.3,2628.1,1.9022]
[1724023742442,1.90686425,2628.3,2628.1,1.9022]
[1724023742643,0.00475425,2628.3,2628.2,1.90216]
[1724023743142,0.56405425,2628.3,2628.2,1.90216]
[1724023744339,2.46614425,2628.3,2628.2,1.90216]
[1724023744537,0.56405425,2628.3,2628.2,1.90216]
[1724023745038,0.00475425,2628.3,2628.2,1.90216]
[1724023745236,0.55935425,2628.3,2628.2,1.90216]
[1724023747241,0.00475425,2628.3,2628.2,6.90216]
[1724023747444,1.1247,2629.2,2629.1,1.90151]
[1724023747629,0.5546,2629.2,2629.1,1.90151]
[1724023748133,0.5701,2629.6,2629.4,1.90124]
[1724023748336,1.14532114,2629.6,2629.4,1.90416677]
[1724023748643,1.14532114,2629.6,2629.4,0.00290677]
[1724023748828,1.14532114,2629.6,2629.4,1.90418677]
[1724023749763,1.14532114,2629.6,2629.4,0.00290677]
[1724023750043,1.14532114,2629.6,2629.5,1.90122]
[1724023750044,0.00422114,2629.6,2629.5,1.90122]
[1724023750241,0.00422114,2629.6,2629.4,0.00290677]
[1724023750449,0.00422114,2629.6,2629.5,1.90122]
[1724023751128,0.00422114,2629.6,2629.5,5.70442]
[1724023752030,0.00422114,2629.6,2629.4,0.00290677]
[1724023752232,0.00422114,2629.6,2629.4,1.90416677]
[1724023752738,0.00570537,2629.8,2629.7,1.90108]
[1724023752937,1.90671537,2629.8,2629.7,3.2078]
[1724023753142,1.90118,2629.6,2629.4,0.00290677]
[1724023753342,3.80810537,2629.8,2629.4,0.00290677]
[1724023753343,0.5353,2629.5,2629.4,0.00290677]
[1724023753640,2.44036897,2629.5,2629.4,0.00290677]
[1724023753940,16.35258897,2629.5,2629.4,0.00290677]
[1724023754240,1.90157,2629.1,2628.8,3.2078]
[1724023754542,0.5453,2629.0,2628.8,3.2078]
[1724023755236,0.5453,2629.0,2628.8,3.21170875]
[1724023756141,0.00384897,2629.5,2628.9,10.38915408]
[1724023756345,0.00384897,2629.5,2629.2,1.90138]
[1724023756640,0.00384897,2629.5,2629.0,0.5849]
[1724023756641,1.90139,2629.3,2629.0,0.5849]
[1724023756830,0.5486,2629.2,2629.0,0.5849]
[1724023757030,1.0939,2629.2,2629.0,0.5849]
[1724023757259,1.0939,2629.2,2629.0,2.48648]
[1724023757447,1.0939,2629.2,2629.0,0.5849]
[1724023757942,1.0939,2629.2,2629.0,1.90159]
[1724023758250,1.0939,2629.2,2629.1,1.90151]
[1724023758433,1.0939,2629.2,2629.0,1.90155]
[1724023759244,1.0939,2629.2,2629.1,1.90151]
[1724023759450,1.0939,2629.2,2629.0,1.90156]
[1724023759831,1.0939,2629.2,2629.1,1.90151]
[1724023760238,1.90509897,2629.5,2629.1,1.90151]
[1724023760239,0.00384897,2629.5,2629.1,7.011]
[1724023760441,0.5612,2629.4,2629.2,1.90138]
[1724023761744,2.4625,2629.4,2629.0,1.90153]
[1724023761941,0.5612,2629.4,2629.1,1.9015]
[1724023762136,0.5612,2629.4,2629.2,1.90144]
[1724023762447,0.5612,2629.4,2629.1,1.90147]
[1724023762742,0.5612,2629.4,2628.9,2.8863]
[1724023762938,2.4625,2629.4,2629.1,1.90147]
[1724023766137,0.5612,2629.4,2629.3,1.90137]
[1724023766436,0.5612,2629.4,2629.2,1.90138]
[1724023767444,1.90145,2629.2,2629.0,1.90159]
[1724023767641,1.90142,2629.3,2629.0,1.90159]
[1724023767947,1.90142,2629.3,2628.8,3.21170875]
[1724023767948,1.90161,2629.0,2628.8,3.21170875]
[1724023768150,0.5826,2628.9,2628.8,3.21170875]
[1724023768451,0.5826,2628.9,2628.8,5.11343875]
[1724023768642,0.5826,2628.9,2628.8,3.21170875]
[1724023769440,2.48426,2628.9,2628.8,3.21170875]
[1724023769644,6.28826,2628.9,2628.8,3.21170875]
[1724023772351,0.5826,2628.9,2628.8,3.21170875]
[1724023772542,2.48426,2628.9,2628.8,3.21170875]
[1724023773567,2.48426,2628.9,2628.8,0.00390875]
[1724023773568,11.39772,2628.9,2628.8,0.00390875]
[1724023775545,12.37690183,2628.9,2628.8,0.00390875]
[1724023777946,17.37690183,2628.9,2628.8,0.00390875]
[1724023779146,12.37690183,2628.9,2628.8,0.00390875]
[1724023779950,12.37690183,2628.9,2628.6,0.00570537]
[1724023779951,3.8036,2628.7,2628.6,0.00570537]
[1724023780148,1.90224,2628.1,2628.0,3.2078]
[1724023780851,1.90224,2628.1,2628.0,3.21088003]
[1724023781152,1.90224,2628.1,2628.0,0.00308003]
[1724023781355,8.91484,2628.1,2628.0,0.00308003]
[1724023781665,5.70704,2628.1,2628.0,0.00308003]
[1724023784454,8.91484,2628.1,2628.0,0.00308003]
[1724023784659,10.81708,2628.1,2628.0,0.00308003]
[1724023785849,7.60928,2628.1,2628.0,0.00308003]
[1724023786056,1.90238,2627.9,2627.8,0.00570537]
[1724023786454,5.70798,2627.9,2627.8,0.00570537]
[1724023786654,7.61036,2627.9,2627.8,0.00570537]
[1724023787064,7.61036,2627.9,2627.8,0.00990697]
[1724023789765,1.90238,2627.9,2627.8,0.00990697]
[1724023790059,3.21350537,2628.3,2627.8,3.81550697]
[1724023790262,3.21350537,2628.3,2628.2,1.90217]
[1724023790856,3.21350537,2628.3,2628.2,5.70697]
[1724023791356,0.00570537,2628.3,2628.2,5.70697]
[1724023791559,1.90168,2628.9,2628.6,1.90184]
[1724023791753,4.3594,2629.0,2628.7,0.5495]
[1724023792060,1.9017,2628.9,2628.7,0.5495]
[1724023792572,0.00570537,2629.1,2628.8,6.107]
[1724023792860,5.37e-06,2629.1,2629.0,5.10939]
[1724023793054,5.37e-06,2629.1,2629.0,10.10939]
[1724023793251,5.37e-06,2629.1,2629.0,13.91339]
[1724023794257,5.37e-06,2629.1,2629.0,17.88201379]
[1724023794658,5.37e-06,2629.1,2629.0,19.78360379]
[1724023794850,5.37e-06,2629.1,2629.0,17.88201379]
[1724023795051,4.18484699,2631.2,2630.1,1.90079]
[1724023795258,4.74434699,2631.2,2630.3,3.2078]
[1724023795472,0.97704699,2631.1,2630.5,4.20346]
[1724023795652,3.7673,2631.2,2630.5,4.20346]
[1724023795653,4.74434699,2631.2,2630.5,4.20346]
[1724023795858,0.97704699,2631.1,2630.3,3.2078]
[1724023796155,5.10804,2630.9,2630.4,0.00570537]
[1724023796371,1.90024,2630.9,2630.4,0.00570537]
[1724023796556,1.90032,2630.8,2630.4,0.00570537]
[1724023796758,3.8016,2630.9,2630.4,0.00570537]
[1724023796956,0.98275236,2631.0,2630.4,0.00570537]
[1724023796957,0.00570537,2631.0,2630.8,5.5108]
[1724023797267,0.00570537,2631.0,2630.4,0.00570537]
[1724023797456,1.9004,2630.7,2630.4,0.00570537]
[1724023797654,1.90587537,2631.0,2630.4,0.00570537]
[1724023797858,4.18484699,2630.8,2630.4,0.00570537]
[1724023798065,1.90046,2630.6,2630.4,0.00570537]
[1724023798458,3.8016,2630.6,2630.4,0.00570537]
[1724023798868,1.90039,2630.7,2630.4,0.00570537]
[1724023799062,1.90044,2630.6,2630.4,0.00570537]
[1724023799264,1.90039,2630.7,2630.4,0.00570537]
[1724023799464,3.2078,2630.8,2630.4,0.00570537]
[1724023799465,1.90045,2630.6,2630.4,0.00570537]
[1724023799854,5.70205,2630.6,2630.4,0.00570537]
[1724023800061,1.90045,2630.6,2630.4,0.00570537]
[1724023800263,1.90038,2630.7,2630.4,0.00570537]
[1724023800494,7.0094,2630.8,2630.4,0.00570537]
[1724023800677,1.9005,2630.5,2630.4,0.00570537]
[1724023801062,5.7021,2630.5,2630.4,0.00570537]
[1724023801272,14.4741,2630.5,2630.4,0.00570537]
[1724023801772,1.90084,2630.1,2629.6,3.2078]
[1724023801968,1.90107,2629.8,2629.3,3.2078]
[1724023802475,1.9012,2629.6,2629.3,3.2078]
[1724023802668,1.90112,2629.7,2629.3,3.21158678]
[1724023803870,1.90116,2629.6,2629.3,3.21158678]
[1724023804367,1.90112,2629.7,2629.3,3.21158678]
[1724023804571,1.1304,2629.8,2629.3,3.21158678]
[1724023804774,1.1304,2629.8,2629.3,0.00378678]
[1724023804964,1.9013,2629.4,2629.3,0.00378678]
[1724023805359,10.7045,2629.4,2629.3,0.00378678]
[1724023805563,3.8032,2629.3,2628.5,4.7763]
[1724023805871,1.9013,2629.4,2628.5,2.47335]
[1724023806060,3.2078,2629.3,2628.5,0.5714]
[1724023806266,1.90177,2628.8,2628.3,5.10984]
[1724023806578,0.00339157,2628.8,2628.7,1.9018]
[1724023806868,0.00339157,2628.8,2628.7,5.1096]
[1724023807067,0.00339157,2628.8,2628.7,8.9136]
[1724023808073,0.00339157,2628.8,2628.7,3.804]
[1724023808275,0.00339157,2628.8,2628.4,3.2078]
[1724023808578,1.90514157,2628.8,2628.4,5.10979]
[1724023809170,1.90514157,2628.8,2628.4,3.2078]
[1724023809171,1.90184,2628.7,2628.4,3.2078]
[1724023809772,1.90515157,2628.8,2628.4,5.1098]
[1724023810363,1.90182,2628.7,2628.4,3.2078]
[1724023810777,1.90516157,2628.8,2628.4,5.10982]
[1724023811372,1.90181,2628.7,2628.4,3.2078]
[1724023811668,1.90188,2628.6,2628.4,3.2078]
[1724023812059,1.90195,2628.5,2628.3,0.01051147]
[1724023812275,1.902,2628.5,2628.3,0.01051147]
[1724023813376,1.90202,2628.4,2628.3,0.01051147]
[1724023814872,5.70682,2628.4,2628.3,0.01051147]
[1724023817172,7.60884,2628.4,2628.3,0.01051147]
[1724023817764,12.60884,2628.4,2628.3,0.01051147]
[1724023818980,13.18094,2628.4,2628.3,0.01051147]
[1724023819573,1.9021,2628.3,2627.3,5.65396]
[1724023819780,1.90271,2627.5,2627.3,3.7512]
[1724023819982,3.2078,2627.9,2627.3,3.7512]
[1724023819983,1.90274,2627.4,2627.3,3.7512]
[1724023820178,1.90271,2627.5,2627.3,5.65401]
[1724023820370,1.90271,2627.5,2627.3,3.7512]
[1724023820570,1.90274,2627.4,2627.3,3.75555879]
[1724023821180,1.90264,2627.6,2627.3,5.65836879]
[1724023821368,0.00570537,2627.7,2627.6,1.9026]
[1724023821572,0.00570537,2627.7,2627.5,1.90265]
[1724023821771,0.00570537,2627.7,2627.4,1.90271]
[1724023821985,1.9026,2627.6,2627.4,1.90271]
[1724023822388,1.90265,2627.6,2627.3,5.65833879]
[1724023822675,1.90269,2627.5,2627.3,3.75555879]
[1724023822880,0.00570537,2627.7,2627.3,5.65836879]
[1724023823071,1.90264,2627.6,2627.4,1.90274]
[1724023823277,1.90826537,2627.7,2627.4,1.90274]
[1724023823475,1.90262,2627.6,2627.3,5.65834879]
[1724023823673,3.2078,2627.4,2627.3,0.00435879]
[1724023824070,5.11054,2627.4,2627.3,0.00435879]
[1724023824470,1.90274,2627.4,2627.3,0.00435879]
[1724023825588,5.70914,2627.4,2627.3,0.00435879]
[1724023825974,3.8064,2627.4,2627.3,0.00435879]
[1724023826189,1.9027,2627.5,2627.3,0.00435879]
[1724023826378,1.90274,2627.4,2627.3,0.00435879]
[1724023826881,5.70914,2627.4,2627.3,0.00435879]
[1724023827386,8.91694,2627.4,2627.3,0.00435879]
[1724023828317,1.17940537,2627.7,2627.3,0.00435879]
[1724023828488,1.17940537,2627.7,2627.4,1.9027]
[1724023828489,1.90827537,2627.7,2627.4,1.9027]
[1724023828693,1.90827537,2627.7,2627.5,2.49417]
[1724023828883,1.9026,2627.6,2627.5,0.5915]
[1724023829777,1.9026,2627.6,2627.3,0.00435879]
[1724023829778,3.8056,2627.6,2627.3,0.00435879]
[1724023829977,1.9027,2627.5,2627.3,1.90716879]
[1724023830584,1.90274,2627.4,2627.3,0.00435879]
[1724023830976,7.61188,2627.4,2627.3,0.00435879]
[1724023831385,1.90274,2627.4,2627.3,0.00435879]
[1724023831883,3.80548,2627.4,2627.3,0.00435879]
[1724023832391,1.90274,2627.4,2627.3,0.00435879]
[1724023832578,5.70914,2627.4,2627.3,0.00435879]
[1724023833780,1.90271,2627.5,2627.3,1.90714879]
[1724023833990,1.90263,2627.6,2627.4,2.44902]
[1724023834586,0.00570537,2627.7,2627.6,1.9026]
[1724023834778,0.00570537,2627.7,2627.6,5.7082]
[1724023837884,0.00570537,2627.7,2627.6,3.8056]
[1724023838186,0.00570537,2627.7,2627.4,0.5463]
[1724023838483,0.00570537,2627.7,2627.6,1.9026]
[1724023839386,1.90823537,2627.7,2627.5,1.90267]
[1724023839690,1.90823537,2627.7,2627.4,0.5463]
[1724023839879,1.90823537,2627.7,2627.5,1.90264]
[1724023840478,0.00570537,2627.7,2627.5,3.8056]
[1724023840685,0.00570537,2627.7,2627.6,1.9026]
[1724023840994,0.00570537,2627.7,2627.5,1.90263]
[1724023841197,1.90823537,2627.7,2627.5,1.90263]
[1724023841383,1.9026,2627.6,2627.4,2.44902]
[1724023841584,0.00570537,2627.7,2627.4,0.5463]
[1724023841796,1.9026,2627.6,2627.4,2.449]
[1724023842087,1.90267,2627.5,2627.4,0.5463]
[1724023842293,0.00570537,2627.7,2627.4,0.5463]
[1724023842497,1.90264,2627.6,2627.4,2.44904]
[1724023842686,1.90264,2627.6,2627.4,2.44899]
[1724023842687,1.90263,2627.6,2627.4,2.44899]
[1724023842883,0.00570537,2627.7,2627.6,1.9026]
[1724023843191,0.00570537,2627.7,2627.6,5.1104]
[1724023843392,0.00570537,2627.7,2627.6,13.916]
[1724023843589,0.00570537,2627.7,2627.6,10.7173]
[1724023843785,0.00570537,2627.7,2627.6,13.9251]
[1724023844590,3.2078,2628.3,2627.7,1.90253]
[1724023844788,3.2078,2628.3,2628.2,1.90217]
[1724023845183,5.10995,2628.3,2628.0,1.90228]
[1724023845699,3.2078,2628.3,2627.9,1.90235]
[1724023846086,1.90217,2628.2,2627.9,1.90235]
[1724023846297,0.00570537,2628.4,2628.0,0.5806]
[1724023846494,1.9021,2628.3,2628.1,1.90219]
[1724023847005,1.9021,2628.3,2628.0,2.48286]
[1724023847185,1.90778537,2628.4,2628.1,1.90222]
[1724023847408,1.9021,2628.3,2628.1,1.90222]
[1724023847595,0.00570537,2628.4,2628.0,0.5806]
[1724023847596,1.90223,2628.2,2628.0,0.5806]
[1724023847784,1.90223,2628.2,2628.0,2.48289]
[1724023847785,1.90221,2628.2,2628.0,2.48289]
[1724023847987,1.90236,2628.0,2627.6,3.2078]
[1724023848193,1.90236,2628.0,2627.7,0.5806]
[1724023848394,1.90236,2628.0,2627.7,2.48307]
[1724023848590,1.90236,2628.0,2627.8,1.90243]
[1724023848891,1.9023,2628.1,2627.8,1.90243]
[1724023849201,1.90232,2628.0,2627.7,0.5806]
[1724023849390,1.90228,2628.1,2627.8,1.90245]
[1724023849700,1.90232,2628.0,2627.8,1.90243]
[1724023850287,1.90238,2627.9,2627.7,2.48308]
[1724023850505,1.90245,2627.8,2627.7,0.5806]
[1724023850687,0.5841,2627.8,2627.7,0.5806]
[1724023851290,0.5841,2627.8,2627.7,2.48313]
[1724023851783,2.48655,2627.8,2627.7,0.5806]
[1724023851988,0.5841,2627.8,2627.7,2.48313]
[1724023852185,1.90228,2628.1,2627.7,4.3862]
[1724023852393,0.97704699,2628.2,2628.0,1.90228]
[1724023852687,1.53444699,2628.3,2628.0,1.90228]
[1724023852889,3.43660699,2628.3,2628.1,1.90221]
[1724023853092,1.46789227,2628.4,2628.2,1.90217]
[1724023853093,0.98275236,2628.4,2628.2,1.90217]
[1724023853294,0.00570537,2628.4,2628.3,1.90209]
[1724023853504,0.00339157,2628.8,2628.7,1.9018]
[1724023853800,0.00339157,2628.8,2628.6,1.90185]
[1724023853987,0.00339157,2628.8,2628.4,3.804]
[1724023854187,0.00339157,2628.8,2628.6,1.90183]
[1724023854698,1.90183,2628.7,2628.4,3.21350537]
[1724023854902,0.98043856,2628.8,2628.4,5.11549537]
[1724023854903,0.5366,2628.6,2628.4,5.11549537]
[1724023855106,2.88218856,2628.8,2628.4,5.11549537]
[1724023855107,1.46689957,2629.0,2628.5,6.107]
[1724023855415,3.41911104,2629.7,2628.5,6.107]
[1724023855416,3.2078,2630.4,2628.9,2.303]
[1724023855700,1.39512095,2629.7,2629.6,1.90115]
[1724023855891,1.39512095,2630.1,2629.6,5.0]
[1724023856091,1.39512095,2630.1,2629.8,1.90095]
[1724023856092,1.39898255,2630.1,2629.8,1.90095]
[1724023856294,1.39512095,2630.0,2629.6,4.02150549]
[1724023856598,1.39512095,2629.9,2629.8,3.2078]
[1724023857890,3.29606095,2629.9,2629.6,0.00967263]
[1724023858095,1.39512095,2629.7,2629.6,0.00967263]
[1724023860099,3.21736697,2630.1,2629.6,9.21382263]
[1724023860100,0.00956697,2630.1,2629.6,9.21382263]
[1724023860308,1.89985,2631.5,2630.1,1.90074]
[1724023860490,1.89988,2631.4,2630.7,1.90032]
[1724023860698,1.1393,2631.6,2630.7,1.90032]
[1724023860904,1.89982,2631.5,2631.0,3.2078]
[1724023861088,1.89982,2631.5,2630.5,2.303]
[1724023861089,1.89989,2631.4,2630.7,1.90029]
[1724023861294,0.0038036,2631.3,2630.8,0.00570537]
[1724023862090,1.9037436,2631.3,2630.8,0.00570537]
[1724023862304,1.9,2631.2,2630.8,0.00570537]
[1724023862502,1.9,2631.2,2629.8,2.27295]
[1724023862503,1.90065,2630.3,2630.0,3.2078]
[1724023862798,1.90065,2630.3,2629.8,0.372]
[1724023862799,3.2078,2630.2,2629.6,3.78726726]
[1724023863001,0.5783,2630.2,2629.7,1.90105]
[1724023863207,1.90081,2630.1,2629.6,3.78726726]
[1724023863402,10.83669,2631.1,2629.6,3.78726726]
[1724023863403,1.95781505,2631.3,2630.0,6.2738]
[1724023863591,1.95781505,2631.3,2631.2,3.2078]
[1724023863592,0.0038036,2631.3,2631.2,3.2078]
[1724023863791,3.8046036,2631.3,2631.2,3.2078]
[1724023864004,0.0038036,2631.3,2631.2,5.1078]
[1724023865997,0.0038036,2631.3,2631.2,3.2078]
[1724023868098,0.0038036,2631.3,2631.2,5.1078]
[1724023868401,0.0038036,2631.3,2631.2,3.2078]
[1724023869008,3.8046036,2631.3,2631.2,3.2078]
[1724023869199,6.2578236,2631.3,2631.2,3.2078]
[1724023869804,3.8046036,2631.3,2631.2,3.2078]
[1724023870303,5.7045236,2631.3,2631.2,3.2078]
[1724023871297,1.90025,2630.9,2630.8,3.2078]
[1724023873406,1.9002,2631.0,2630.8,3.2078]
[1724023873604,5.70094,2631.0,2630.8,3.2078]
[1724023874505,3.8008,2631.0,2630.8,3.2078]
[1724023874703,5.70097,2631.0,2630.8,3.2078]
[1724023875522,1.90021,2630.9,2630.8,3.2078]
[1724023875811,1.90043,2630.6,2630.5,3.2078]
[1724023876312,1.90043,2630.6,2630.4,0.00570537]
[1724023876313,1.9005,2630.5,2630.4,0.00570537]
[1724023876511,2.4512,2630.5,2630.4,0.00570537]
[1724023876709,6.2528,2630.5,2630.4,0.00570537]
[1724023876904,6.2528,2630.5,2629.6,0.00396726]
[1724023876905,14.4606,2630.5,2629.6,0.00396726]
[1724023877103,1.90102,2629.8,2629.6,0.00396726]
[1724023877307,5.659,2630.5,2629.6,0.00396726]
[1724023877308,1.90081,2630.1,2629.6,0.00396726]
[1724023877509,1.90108,2629.7,2629.6,0.00396726]
[1724023878712,3.80216,2629.7,2629.6,0.00396726]
[1724023880214,3.80216,2629.7,2628.3,2.21648493]
[1724023880215,1.90166,2628.9,2628.8,3.7771]
[1724023880517,1.90175,2628.8,2628.5,5.10971]
[1724023880715,1.90159,2629.0,2628.5,3.2078]
[1724023880906,1.90188,2628.6,2628.5,3.2078]
[1724023881108,1.9013,2629.4,2628.5,3.21129108]
[1724023881109,1.90178,2628.8,2628.5,3.21129108]
[1724023881318,0.5648,2628.9,2628.5,3.21129108]
[1724023881319,0.00355473,2628.6,2628.5,8.17917108]
[1724023881619,1.9011,2629.7,2629.0,1.90155]
[1724023881620,1.9014,2629.3,2629.0,1.90155]
[1724023881916,1.9014,2629.3,2629.1,0.5472]
[1724023882115,1.90115,2629.6,2629.1,0.5472]
[1724023882321,6.85178,2629.7,2629.0,3.2078]
[1724023882509,1.90151,2629.1,2629.0,3.2078]
[1724023882915,1.90147,2629.2,2629.0,3.2078]
[1724023883216,1.90151,2629.1,2629.0,3.2078]
[1724023883606,1.90123,2629.5,2629.0,3.2078]
[1724023884008,1.90151,2629.1,2629.0,3.2078]
[1724023885318,5.70551,2629.1,2629.0,3.2078]
[1724023885521,1.90174,2628.8,2628.6,0.576]
[1724023886404,1.9018,2628.7,2628.6,0.576]
[1724023889216,1.90188,2628.6,2628.5,3.21129108]
[1724023891616,1.90188,2628.6,2628.5,0.00349108]
[1724023892209,5.70588,2628.6,2628.5,0.00349108]
[1724023893112,7.60776,2628.6,2628.5,0.00349108]
[1724023893317,10.81556,2628.6,2628.5,0.00349108]
[1724023893529,10.81556,2628.6,2627.3,1.90276]
[1724023893530,1.90209,2628.3,2627.3,1.90276]
[1724023893712,1.9026,2627.6,2627.2,3.7713]
[1724023893931,1.90241,2627.9,2627.2,3.7713]
[1724023893932,1.90241,2627.9,2627.3,1.90279]
[1724023894115,1.9027,2627.5,2627.3,1.90279]
[1724023894315,1.90241,2627.9,2627.4,1.90274]
[1724023894316,1.90262,2627.6,2627.4,1.90274]
[1724023894624,0.00439451,2627.6,2627.5,5.11047]
[1724023895218,0.00439451,2627.6,2627.5,13.91607]
[1724023897520,0.00439451,2627.6,2627.5,5.11047]
[1724023898045,0.00439451,2627.6,2627.5,8.91607]
[1724023898226,0.00439451,2627.6,2627.5,13.91607]
[1724023898524,0.00439451,2627.6,2627.5,8.91607]
[1724023903428,0.00439451,2627.6,2627.5,11.21807]
[1724023904517,0.00439451,2627.6,2627.5,3.2078]
[1724023904719,1.90699451,2627.6,2627.5,3.2078]
[1724023905822,1.90699451,2627.6,2627.4,0.00469025]
[1724023905823,1.90267,2627.5,2627.4,0.00469025]
[1724023906254,0.00439451,2627.6,2627.4,1.90738025]
[1724023906416,0.00439451,2627.6,2627.4,0.00469025]
[1724023906729,0.00439451,2627.6,2627.5,3.2078]
[1724023906928,0.00439451,2627.6,2627.4,1.90739025]
[1724023907227,0.00439451,2627.6,2626.8,3.2078]
[1724023907228,8.91607,2627.5,2626.8,3.2078]
[1724023907436,1.90287,2627.3,2626.8,3.2078]
[1724023907620,1.90309,2627.0,2626.8,3.2078]
[1724023907931,1.90309,2627.0,2626.7,1.90324]
[1724023907932,1.90311,2626.9,2626.7,5.11104]
[1724023908229,1.90311,2626.9,2626.7,5.11572639]
[1724023908624,1.90318,2626.8,2626.7,3.21248639]
[1724023908928,1.90315,2626.9,2626.7,5.11573639]
[1724023909126,4.9106,2627.4,2626.7,3.21248639]
[1724023909332,1.90279,2627.4,2627.1,1.90291]
[1724023909531,1.90279,2627.4,2626.9,5.5098]
[1724023909826,1.90279,2627.4,2627.1,1.9029]
[1724023910429,1.90291,2627.2,2626.9,3.2078]
[1724023910628,1.90287,2627.3,2627.0,1.90301]
[1724023910930,1.90267,2627.5,2627.2,1.90288]
[1724023911122,0.55179451,2627.6,2626.9,3.2078]
[1724023911123,1.90278,2627.4,2627.1,1.90293]
[1724023911324,1.90283,2627.3,2627.0,1.90299]
[1724023911836,1.90285,2627.3,2627.0,1.90302]
[1724023912434,1.90274,2627.4,2626.7,1.90788639]
[1724023912634,0.5416,2627.3,2626.7,0.00468639]
[1724023912933,1.90318,2626.8,2626.7,0.00468639]
[1724023913532,5.71038,2626.8,2626.7,0.00468639]
[1724023914137,7.61356,2626.8,2626.7,0.00468639]
[1724023914433,12.61356,2626.8,2626.7,0.00468639]
[1724023915034,1.90332,2626.6,2626.5,0.00570537]
[1724023915422,5.71052,2626.6,2626.5,0.00570537]
[1724023916123,5.71052,2626.6,2626.5,0.01006945]
[1724023916733,7.61384,2626.6,2626.5,0.01006945]
[1724023917034,5.71052,2626.6,2626.5,0.01006945]
[1724023918328,6.27272,2626.6,2626.5,0.01006945]
[1724023919442,6.27272,2626.6,2626.2,3.2078]
[1724023919443,1.90354,2626.3,2626.2,3.2078]
[1724023919837,5.71154,2626.3,2626.2,3.2078]
[1724023920238,5.71154,2626.3,2626.2,3.21186275]
[1724023921162,5.71154,2626.3,2626.2,0.00406275]
[1724023921542,1.90354,2626.3,2626.2,0.00406275]
[1724023921737,5.71154,2626.3,2626.2,0.00406275]
[1724023922239,1.9039,2625.8,2625.7,0.5413]
[1724023922558,5.11141,2626.2,2625.3,5.65156]
[1724023922735,1.90393,2625.8,2625.5,1.90408]
[1724023923045,1.10050537,2626.0,2625.3,3.7473]
[1724023923046,1.90405,2625.6,2625.3,3.7473]
[1724023923245,0.00570537,2626.0,2625.5,2.302]
[1724023923440,0.00858073,2626.0,2625.9,1.90383]
[1724023923834,0.00858073,2626.0,2625.9,5.71183]
[1724023924242,0.00858073,2626.0,2625.9,3.808]
[1724023924545,0.00858073,2626.0,2625.4,3.2078]
[1724023924546,3.81658073,2626.0,2625.4,3.2078]
[1724023924862,0.00858073,2626.0,2625.9,1.90383]
[1724023925034,0.00858073,2626.0,2625.9,2.44973]
[1724023925236,0.00858073,2626.0,2625.9,6.25773]
[1724023925939,0.00858073,2626.0,2625.9,0.5459]
[1724023926135,0.00858073,2626.0,2625.9,2.44973]